Cogmind - Beta 10.2 @@@ ROGUE MODE // 2021.10.31 @ 00:57:07 Player: raddakar Result: Destroyed by S-27 Virus with Autogun Performance ------------- Evolutions (3) 1500 Regions Visited (17) 3400 Robots Destroyed (157) 785 Value Destroyed (7151) 7151 Prototype IDs (7) 140 Alien Tech Used (0) 0 Bonus (3204) 3204 TOTAL SCORE: 16180 Bonus ------- High Alert Combat Kills 809 Follower Combat Kills 140 Entered Garrisons 600 Used RIF Installer 1500 Aligned with FarCom 300 Friendly Fire -145 Cogmind --------- Core Integrity 0/700 Matter 213/300 Energy 99/100 System Corruption 1% Temperature Cool (0) Movement Core (50) Location -6/Proximity Caves Parts ------- > --- POWER (1) -------- (None) > --- PROPULSION (4) --- (None) > --- UTILITY (5) ------ (None) > --- WEAPON (3) ------- (None) > --- INVENTORY (4) ---- Improved Shield Generator Relay Coupler [Grunt] (28) Relay Coupler [Sentry] (28) Lightning Gun Peak State ------------ > --- POWER ------------ Reinforced Deuterium Engine > --- PROPULSION ------- Aluminum Leg Aluminum Leg Carbon-fiber Leg Carbon-fiber Leg > --- UTILITY ---------- High-capacity Storage Unit High-capacity Storage Unit High-capacity Storage Unit Improved Medium Armor Plating Improved Medium Armor Plating > --- WEAPON ----------- Gauss Rifle Gauss Rifle Mass Driver > --- INVENTORY -------- Deuterium Engine High-capacity Matter Pod Improved Medium Armor Plating Improved Medium Armor Plating Relay Coupler [ARC] Relay Coupler [Grunt] Relay Coupler [Grunt] Relay Coupler [Brawler] Relay Coupler [Duelist] Relay Coupler [Duelist] Relay Coupler [Sentry] Relay Coupler [Sentry] Relay Coupler [Sentry] Relay Coupler [Sentry] Relay Coupler [Sentry] Relay Coupler [Sentry] Relay Coupler [Sentry] Relay Coupler [Sentry] Relay Coupler [Hunter] Relay Coupler [Hunter] Relay Coupler [Hunter] Relay Coupler [Hunter] Lightning Gun Lightning Gun Lightning Gun Mass Driver Long-range Missile Launcher Great Axe [Rating: 48] Favorites ----------- Power Reinforced Ion Engine Engine Reinforced Ion Engine Propulsion Light Treads Treads Light Treads Leg Aluminum Leg Wheel Wheel Flight Unit VTOL Module Utility High-capacity Storage Unit Device Improved Heat Sink Storage High-capacity Storage Unit Processor Modified TNC Hackware Hacking Suite Protection Light Armor Plating Weapon Autogun Energy Gun Particle Gun Energy Cannon Advanced Beam Cannon Ballistic Gun Autogun Ballistic Cannon Mass Driver Launcher Long-range Missile Launcher Special Weapon Mining Laser Slashing Weapon Great Axe Build | -11 -10 -10 -9 -9 -9 -8 -8 -8 -8 -8 -7 -7 -7 -7 -7 -7 -6 ------- Run | Scr Mat Min Mat Min Exi Min Mat Gar Mat Gar Fac Gar Fac Low Low Zio Pro Slots Evolved 6 | . . . 2 . . . 2 . . . 2 . . . . . . Power . | . . . . . . . . . . . . . . . . . . Propulsion 2 | . . . . . . . 1 . . . 1 . . . . . . Utility 3 | . . . 1 . . . 1 . . . 1 . . . . . . Weapon 1 | . . . 1 . . . . . . . . . . . . . . Parts Attached 179 | . 19 . 21 3 12 . 12 27 3 10 3 52 5 4 5 2 1 Power 11 | . 1 . 5 1 . . . 1 . 1 . 2 . . . . . Engine 11 | . 1 . 5 1 . . . 1 . 1 . 2 . . . . . Core . | . . . . . . . . . . . . . . . . . . Reactor . | . . . . . . . . . . . . . . . . . . Propulsion 68 | . 10 . 12 1 2 . 2 8 3 1 1 23 . 4 . 1 . Treads 32 | . 6 . 6 . 2 . 2 1 3 1 1 6 . 4 . . . Leg 22 | . . . . . . . . 7 . . . 15 . . . . . Wheel 11 | . 4 . 6 1 . . . . . . . . . . . . . Hover . | . . . . . . . . . . . . . . . . . . Flight 3 | . . . . . . . . . . . . 2 . . . 1 . Utility 35 | . 4 . 1 . 3 . 3 3 . 2 1 11 5 . 1 . 1 Device 7 | . . . . . . . . . . . . 5 1 . . . 1 Storage 7 | . 3 . 1 . 2 . . . . 1 . . . . . . . Processor 2 | . . . . . 1 . . . . . . . 1 . . . . Hackware 1 | . . . . . . . . . . . . . 1 . . . . Protection 18 | . 1 . . . . . 3 3 . 1 1 6 2 . 1 . . Artifact . | . . . . . . . . . . . . . . . . . . Weapon 65 | . 4 . 3 1 7 . 7 15 . 6 1 16 . . 4 1 . Energy Gun 4 | . . . . . 1 . 1 . . 1 . 1 . . . . . Energy Cannon 2 | . . . 1 . . . . 1 . . . . . . . . . Ballistic Gun 38 | . 2 . 2 1 5 . 5 10 . 4 . 7 . . 2 . . Ballistic Cannon 6 | . 2 . . . . . . . . . . 4 . . . . . Launcher 8 | . . . . . . . . 3 . 1 . 3 . . 1 . . Special Weapon 3 | . . . . . . . 1 1 . . . . . . . 1 . Impact Weapon . | . . . . . . . . . . . . . . . . . . Slashing Weapon 4 | . . . . . 1 . . . . . 1 1 . . 1 . . Piercing Weapon . | . . . . . . . . . . . . . . . . . . Special Melee Weapon . | . . . . . . . . . . . . . . . . . . Unidentified Prototypes 7 | . . . 2 . 3 . 2 . . . . . . . . . . Parts Lost 39 | . 3 . . . . . 3 4 . 1 . 17 . . 4 7 . Power 2 | . 1 . . . . . . . . . . . . . . 1 . Propulsion 15 | . 1 . . . . . 1 1 . . . 7 . . 3 2 . Utility 12 | . . . . . . . 2 2 . . . 6 . . 1 1 . Weapon 10 | . 1 . . . . . . 1 . 1 . 4 . . . 3 . Highest Loss Streak 11 | . 2 . . . . . 3 2 . 1 . 11 . . 4 7 . Average Slot Usage (%) 93 | . 88 100 99 100 98 100 99 98 100 100 100 89 98 100 95 75 . Engine 7 | . 6 14 10 11 11 11 9 9 9 9 7 7 7 7 7 6 . Treads 14 | . 15 14 14 18 11 22 26 1 20 27 30 7 30 30 25 6 . Leg 6 | . . . . . . . . 24 6 . . 13 . . . . . Wheel 2 | . 12 14 6 3 10 . . . . . . . . . . . . Flight 1 | . . . . . . . . . . . . 3 . . . 3 . Storage 23 | . 25 28 33 33 26 22 18 18 18 26 23 23 23 23 23 22 . Processor 2 | . . . . . 6 11 9 9 9 . . . 6 7 7 6 . Protection 6 | . 1 . . . . . 8 8 9 9 15 9 2 7 7 6 . Energy Cannon 2 | . . . 4 11 11 11 6 1 9 4 . . . . . . . Ballistic Gun 16 | . 15 14 17 14 20 22 16 24 18 21 22 13 7 7 14 13 . Ballistic Cannon 4 | . 9 14 11 7 . . . . . . . 3 7 7 7 6 . Slashing Weapon 1 | . . . . . . . . . . . . 2 7 7 . . . Naked Turns 168 | . . . . . . . . . . . . . . . . 20 148 Heaviest Build 146 | 11 40 40 62 66 82 82 91 86 85 120 122 146 129 128 128 125 . Greatest Support 96 | 20 40 10 40 40 40 40 60 60 60 60 80 80 80 96 96 20 3 Greatest Overweight (x) 42 | . 3 3 6 4 5 2 1 4 2 1 1 42 1 1 6 41 . Average Overweight (x) 2 | . 1 3 3 2 3 2 1 1 1 1 1 2 1 1 1 4 . Largest Inventory Capacity 28 | 6 16 16 22 22 22 20 20 20 20 28 28 28 28 28 28 28 4 Average Capacity 24 | 6 13 16 22 22 19 20 20 20 20 27 28 28 28 28 28 27 4 Most Carried 28 | 6 16 16 22 22 22 20 20 20 20 28 28 28 28 28 28 28 4 Average Carried 23 | 6 12 16 20 21 18 16 17 19 18 26 27 27 27 27 27 26 3 Final Capacity 28 | 6 16 16 22 22 20 20 20 20 20 28 28 28 28 28 28 4 4 Final Carried 28 | 6 16 16 21 22 15 20 17 20 19 28 28 28 28 28 27 4 4 Class Distribution -------------------- 25% | Hauler-Mutant 19% | Scavenger-Skirmisher 11% | Hauler-Gunner 10% | Scavenger-Tank 9% | Mutant 8% | Hauler-Skirmisher 6% | Bothacker-Tank 4% | Scavenger-Mutant Dominant Class ---------------- Mutant | -10/Materials Mutant | -10/Mines Hauler-Gunner | -9/Materials Hauler-Gunner | -9/Mines Skirmisher | -9/Exiles Hauler-Skirmisher | -8/Mines Hauler-Skirmisher | -8/Materials Scavenger-Skirmisher | -8/Garrison Hauler-Skirmisher | -8/Materials Scavenger-Skirmisher | -8/Garrison Scavenger-Tank | -7/Factory Hauler-Mutant | -7/Garrison Hauler-Mutant | -7/Factory Hauler-Mutant | -7/Lower Caves Bothacker-Tank | -7/Lower Caves Bothacker-Tank | -7/Zion Mutant | -6/Proximity Caves Resources | -11 -10 -10 -9 -9 -9 -8 -8 -8 -8 -8 -7 -7 -7 -7 -7 -7 -6 ----------- Run | Scr Mat Min Mat Min Exi Min Mat Gar Mat Gar Fac Gar Fac Low Low Zio Pro Matter Collected 4975 | 224 446 108 669 114 110 36 304 520 . 571 . 1447 43 91 212 80 . Remotely . | . . . . . . . . . . . . . . . . . . Salvage Created 5072 | 74 446 76 611 153 . 67 609 596 . 995 . 1184 43 . 218 . . Parts 263 | . 29 3 26 7 . 10 30 38 . 55 . 46 4 . 15 . . Haulers Intercepted 7 | . 2 . 3 . . . 2 . . . . . . . . . . Recyclers Shooed 3 | . 1 . . . . . 2 . . . . . . . . . . Parts Field Recycled . | . . . . . . . . . . . . . . . . . . Retrieved Matter . | . . . . . . . . . . . . . . . . . . Parts Self-Destructed 23 | . . . . . . . . . . . . . . 9 12 2 . Prevented . | . . . . . . . . . . . . . . . . . . Kills | -11 -10 -10 -9 -9 -9 -8 -8 -8 -8 -8 -7 -7 -7 -7 -7 -7 -6 ------- Run | Scr Mat Min Mat Min Exi Min Mat Gar Mat Gar Fac Gar Fac Low Low Zio Pro Combat Hostiles Destroyed 140 | . 13 2 12 4 . 3 9 23 . 25 . 36 2 . 11 . . Melee 1 | . . . . . . . . . . . . 1 . . . . . Guns 81 | . 11 1 6 . . 1 7 13 . 21 . 18 1 . 2 . . Cannons 27 | . 2 1 6 4 . 2 . 1 . 2 . 4 1 . 4 . . AOE 31 | . . . . . . . 2 9 . 2 . 13 . . 5 . . Classes Destroyed 13 | 1 4 . 2 1 . 1 2 . . 1 . 1 . . . . . Worker 4 | . . . 1 . . . 3 . . . . . . . . . . Builder 1 | . . . . . . . 1 . . . . . . . . . . Tunneler 1 | . . . . . . 1 . . . . . . . . . . . Hauler 7 | . 2 . 3 . . . 2 . . . . . . . . . . Recycler 2 | 1 . . . . . . 1 . . . . . . . . . . Operator 1 | . 1 . . . . . . . . . . . . . . . . Swarmer 58 | . 6 . 3 . . 3 3 14 . 7 . 13 2 . 7 . . Grunt 54 | . 7 2 6 3 . . 5 5 . 12 . 13 . . 1 . . Brawler 7 | . . . . 1 . . . . . 1 . 4 . . 1 . . Duelist 3 | . . . . . . . . . . 2 . 1 . . . . . Sentry 13 | . . . 3 . . . . 3 . 3 . 3 . . 1 . . Hunter 4 | . . . . . . . 1 1 . . . 2 . . . . . Programmer 2 | . . . . . . . . . . . . 1 . . 1 . . Best Kill Streak 8 | 1 5 2 6 2 . 4 8 7 . 4 . 8 2 . 5 . . Combat Bots Only 8 | . 5 2 4 2 . 3 3 7 . 4 . 8 2 . 5 . . Max Kills in Single Turn 4 | 1 1 1 2 1 . 2 2 4 . 2 . 3 1 . 3 . . Gunslinging 1 | . . . . . . . . . . 1 . . . . . . . Exploded 4 | . . . . . . . 1 4 . 2 . 3 . . 3 . . Melee 1 | . . . . . . . . . . . . 1 . . . . . Uniques/NPCs Destroyed . | . . . . . . . . . . . . . . . . . . Combat | -11 -10 -10 -9 -9 -9 -8 -8 -8 -8 -8 -7 -7 -7 -7 -7 -7 -6 -------- Run | Scr Mat Min Mat Min Exi Min Mat Gar Mat Gar Fac Gar Fac Low Low Zio Pro Damage Taken 9716 | . 896 130 300 242 . 100 1014 936 . 638 . 3446 118 . 1026 780 90 Core 1130 | . 159 16 15 37 . 10 103 20 . 62 . 248 . . 106 264 90 Absorbed by Shields 19 | . . . . . . . . . . . . 19 . . . . . Core Remaining (%) 70 | 100 . 30 . . . 84 . . . 66 . . . . . . . Volleys Fired 400 | 8 59 6 34 11 . 5 49 53 . 51 1 94 4 . 24 1 . Largest 3 | 2 2 2 3 3 . 3 3 3 . 3 2 3 2 . 3 1 . Hottest 140 | 70 55 55 123 123 . 108 136 111 . 119 46 140 80 . 103 30 . Shots Fired 939 | 16 114 12 102 30 . 15 95 124 . 128 2 230 8 . 62 1 . Gun 725 | 16 70 6 64 11 . 10 83 112 . 109 2 199 4 . 39 . . Cannon 190 | . 44 6 38 19 . 5 9 7 . 18 . 21 4 . 19 . . Launcher 18 | . . . . . . . . 3 . 1 . 10 . . 4 . . Special 6 | . . . . . . . 3 2 . . . . . . . 1 . Kinetic 835 | 8 114 12 98 22 . 10 71 112 . 107 2 213 8 . 58 . . Thermal 66 | 8 . . 4 8 . 5 12 9 . 20 . . . . . . . Explosive 18 | . . . . . . . . 3 . 1 . 10 . . 4 . . Electromagnetic 19 | . . . . . . . 12 . . . . 7 . . . . . Robot Hit Streak 28 | 3 16 12 27 10 . 6 14 24 . 28 . 18 5 . 10 4 . Robot Miss Streak 8 | 4 8 . 3 4 . 2 4 3 . 1 . 5 1 . 3 . . Penetration Max 1 | . . . . . . . . . . 1 . 1 . . . . . Secondary Targets 15 | . . . . . . . 1 4 . 4 . 6 . . . . . Max Gunslinging Chain 2 | . . . . . . . 1 1 . 2 . 1 . . . . . Shots Hit Robots 628 | 7 75 11 66 23 . 7 68 72 . 92 . 160 6 . 40 1 . Core Hits 286 | 2 23 4 26 8 . 4 24 41 . 46 . 84 3 . 21 . . Critical Hits 12 | . . . 1 2 . 1 3 1 . 3 . 1 . . . . . Critical Kills 3 | . . . . . . 1 1 . . 1 . . . . . . . Critical Parts Destroyed 9 | . . . 1 2 . . 2 1 . 2 . 1 . . . . . Melee Attacks 14 | . . . . . . . . . . . 1 5 6 . 2 . . Impact . | . . . . . . . . . . . . . . . . . . Slashing 14 | . . . . . . . . . . . 1 5 6 . 2 . . Piercing . | . . . . . . . . . . . . . . . . . . Sneak Attacks . | . . . . . . . . . . . . . . . . . . Combat Hostiles . | . . . . . . . . . . . . . . . . . . Follow-up Attacks . | . . . . . . . . . . . . . . . . . . Damage Inflicted 13359 | 123 995 163 866 342 . 161 1193 1537 . 1832 . 4731 126 . 1290 . . Guns 7167 | 123 642 76 521 58 . 52 836 838 . 1264 . 2446 54 . 257 . . Cannons 2587 | . 343 87 322 284 . 103 122 103 . 372 . 417 72 . 362 . . Explosions 3434 | . . . . . . . 214 596 . 196 . 1789 . . 639 . . Melee 111 | . . . . . . . . . . . . 79 . . 32 . . Ramming 60 | . 10 . 23 . . 6 21 . . . . . . . . . . Kinetic 8547 | 48 985 163 802 193 . 52 691 838 . 1235 . 2795 126 . 619 . . Thermal 1208 | 75 . . 41 149 . 103 336 103 . 401 . . . . . . . Explosive 3220 | . . . . . . . . 596 . 196 . 1789 . . 639 . . Electromagnetic 213 | . . . . . . . 145 . . . . 68 . . . . . Impact . | . . . . . . . . . . . . . . . . . . Slashing 111 | . . . . . . . . . . . . 79 . . 32 . . Piercing . | . . . . . . . . . . . . . . . . . . Highest Corruption 1 | . . . . . . . . . . . . 1 1 1 1 1 1 Average Corruption 1 | . . . . . . . . . . . . 1 1 1 1 1 1 Corruption Purged . | . . . . . . . . . . . . . . . . . . Effects 19 | . . . . . . . . . . . . 11 . 4 3 . 1 Message Errors 7 | . . . . . . . . . . . . 5 . 2 . . . Energy Discharges 5 | . . . . . . . . . . . . 4 . 1 . . . Data Loss (minor) 4 | . . . . . . . . . . . . 1 . 1 1 . 1 Targeting Errors 3 | . . . . . . . . . . . . 1 . . 2 . . Overload Shots . | . . . . . . . . . . . . . . . . . . Overflow Damage 277 | . 14 . 11 . . . 20 50 . . . 78 2 . 102 . . Projectiles 72 | . 14 . 11 . . . . . . . . . 2 . 45 . . Explosions 198 | . . . . . . . 20 50 . . . 78 . . 50 . . Melee 7 | . . . . . . . . . . . . . . . 7 . . Knockbacks 11 | . 2 . 3 . . 1 . . . . . 2 1 . 2 . . Impact 1 | . . . . . . 1 . . . . . . . . . . . Kinetic 9 | . 2 . 2 . . . . . . . . 2 1 . 2 . . Secondary 1 | . . . 1 . . . . . . . . . . . . . . Self-Inflicted Damage 287 | . 3 . . . . . 31 . . . . 253 . . . . . Shots 6 | . . . . . . . 1 . . . . 5 . . . . . Rammed 9 | . 2 . 4 . . 1 2 . . . . . . . . . . Targets Rammed 11 | . 2 . 4 . . 1 4 . . . . . . . . . . Kicked . | . . . . . . . . . . . . . . . . . . Crushed 2 | . . . . . . . 2 . . . . . . . . . . Highest Temperature 352 | 72 111 50 116 352 . 236 302 261 . 257 . 306 60 . 266 . . Average Temperature 88 | 29 42 30 27 165 . 116 133 72 . 89 . 88 38 . 107 . . Received Heat Transfer 2745 | . 270 72 129 132 . . 360 423 . 270 . 909 . . 180 . . Effects 12 | . . . . . . 2 2 1 . 4 . 3 . . . . . Energy Bleed 4 | . . . . . . . 2 . . 1 . 1 . . . . . Interference 8 | . . . . . . 2 . 1 . 3 . 2 . . . . . Siege Activations . | . . . . . . . . . . . . . . . . . . Robots Corrupted . | . . . . . . . . . . . . . . . . . . Combat Hostiles . | . . . . . . . . . . . . . . . . . . Parts Fried . | . . . . . . . . . . . . . . . . . . Impact Corruptions . | . . . . . . . . . . . . . . . . . . Robots Melted . | . . . . . . . . . . . . . . . . . . Combat Hostiles . | . . . . . . . . . . . . . . . . . . Parts Melted 2 | . . . . . . . . 1 . 1 . . . . . . . Heat Transferred 2149 | 222 . . 74 259 . 185 522 185 . 702 . . . . . . . Parts Sabotaged . | . . . . . . . . . . . . . . . . . . Parts Stolen . | . . . . . . . . . . . . . . . . . . Parts Stripped . | . . . . . . . . . . . . . . . . . . Power Chain Reactions 2 | . . . . . . . 2 . . . . . . . . . . Missiles Intercepted . | . . . . . . . . . . . . . . . . . . Alert | -11 -10 -10 -9 -9 -9 -8 -8 -8 -8 -8 -7 -7 -7 -7 -7 -7 -6 ------- Run | Scr Mat Min Mat Min Exi Min Mat Gar Mat Gar Fac Gar Fac Low Low Zio Pro Peak Influence 1178 | 5 205 50 301 155 . 75 186 715 348 1049 550 1178 695 . . . . Initial 607 | . 3 . 19 55 . . 29 . 348 226 550 175 607 . . . . Average 544 | 1 76 44 171 106 . 25 55 445 348 627 517 897 654 . . . . Maximum Alert Level 4 | . 1 . 1 . . . . 3 1 3 2 4 2 . . . . Low Security (%) 29 | 100 99 100 49 100 . 100 100 20 . . . 1 . . . . . Level 1 10 | . . . 50 . . . . 12 100 15 10 7 . . . . . Level 2 26 | . . . . . . . . 61 . 48 89 17 100 . . . . Level 3 12 | . . . . . . . . 4 . 35 . 20 . . . . . Level 4 20 | . . . . . . . . . . . . 52 . . . . . Level 5 . | . . . . . . . . . . . . . . . . . . High Security . | . . . . . . . . . . . . . . . . . . Max Security . | . . . . . . . . . . . . . . . . . . Squads Dispatched 7 | . 3 . 1 . . . 2 . . . 1 . . . . . . Investigation 2 | . 2 . . . . . . . . . . . . . . . . Extermination 1 | . . . . . . . . . . . 1 . . . . . . Reinforcement 3 | . 1 . 1 . . . 1 . . . . . . . . . . Assault . | . . . . . . . . . . . . . . . . . . Garrison 1 | . . . . . . . 1 . . . . . . . . . . Intercept . | . . . . . . . . . . . . . . . . . . Construction Impeded 1 | . . . . . . . 1 . . . . . . . . . . Haulers Reinforced . | . . . . . . . . . . . . . . . . . . Stealth | -11 -10 -10 -9 -9 -9 -8 -8 -8 -8 -8 -7 -7 -7 -7 -7 -7 -6 --------- Run | Scr Mat Min Mat Min Exi Min Mat Gar Mat Gar Fac Gar Fac Low Low Zio Pro Distress Signals 3 | . . . 2 . . . 1 . . . . . . . . . . Communications Jammed . | . . . . . . . . . . . . . . . . . . Distress Signals . | . . . . . . . . . . . . . . . . . . Times Spotted 180 | . 18 1 21 4 . 3 15 24 . 22 . 43 3 . 14 3 9 Peak Tracking Total 10 | . 4 1 6 2 . 3 10 6 . 3 1 8 2 . 8 3 9 Tactical Retreats 15 | . . . 2 . . . 2 2 . . . 5 . . 3 . 1 Traps | -11 -10 -10 -9 -9 -9 -8 -8 -8 -8 -8 -7 -7 -7 -7 -7 -7 -6 ------- Run | Scr Mat Min Mat Min Exi Min Mat Gar Mat Gar Fac Gar Fac Low Low Zio Pro Traps Triggered 22 | . 3 . . . . . . 8 . 4 . 7 . . . . . Indirectly . | . . . . . . . . . . . . . . . . . . Trap Hack Attempts . | . . . . . . . . . . . . . . . . . . Triggered . | . . . . . . . . . . . . . . . . . . Disarmed . | . . . . . . . . . . . . . . . . . . Reprogrammed . | . . . . . . . . . . . . . . . . . . Reused . | . . . . . . . . . . . . . . . . . . Traps Extracted . | . . . . . . . . . . . . . . . . . . Installed . | . . . . . . . . . . . . . . . . . . Triggered 1 | . . . . . . . . . . . . . . . . . 1 Machines | -11 -10 -10 -9 -9 -9 -8 -8 -8 -8 -8 -7 -7 -7 -7 -7 -7 -6 ---------- Run | Scr Mat Min Mat Min Exi Min Mat Gar Mat Gar Fac Gar Fac Low Low Zio Pro Machines Disabled 13 | . . . . . . . . 4 . 5 . 4 . . . . . Max in Single Turn 2 | . . . . . . . . 1 . 2 . 1 . . . . . Garrison Relay 11 | . . . . . . . . 4 . 3 . 4 . . . . . Phase Generator 1 | . . . . . . . . . . 1 . . . . . . . Machines Sabotaged . | . . . . . . . . . . . . . . . . . . Garrisons Compromised . | . . . . . . . . . . . . . . . . . . Overloaded Fab Kills . | . . . . . . . . . . . . . . . . . . Fab Network Shutdowns . | . . . . . . . . . . . . . . . . . . Hacking | -11 -10 -10 -9 -9 -9 -8 -8 -8 -8 -8 -7 -7 -7 -7 -7 -7 -6 --------- Run | Scr Mat Min Mat Min Exi Min Mat Gar Mat Gar Fac Gar Fac Low Low Zio Pro Machines Accessed 25 | . 9 . 4 . 4 . 4 . 1 . 2 . 1 . . . . Terminals 14 | . 7 . 2 . . . 3 . . . 1 . 1 . . . . Fabricators . | . . . . . . . . . . . . . . . . . . Repair Stations 2 | . 1 . 1 . . . . . . . . . . . . . . Recycling Units 2 | . 1 . 1 . . . . . . . . . . . . . . Scanalyzers . | . . . . . . . . . . . . . . . . . . Garrison Access 3 | . . . . . . . 1 . 1 . 1 . . . . . . Total Hacks 70 | . 19 . 12 . 27 . 7 . 1 . 3 . 1 . . . . Successful 49 | . 10 . 5 . 27 . 3 . 1 . 3 . . . . . . Failed 20 | . 8 . 7 . . . 4 . . . . . 1 . . . . Catastrophic 3 | . 1 . 1 . . . 1 . . . . . . . . . . Database Lockouts 1 | . 1 . . . . . . . . . . . . . . . . Manual 14 | . 8 . . . 1 . 3 . . . . . 2 . . . . Terminals 31 | . 16 . 6 . . . 6 . . . 2 . 1 . . . . Fabricators . | . . . . . . . . . . . . . . . . . . Repair Stations 7 | . 2 . 5 . . . . . . . . . . . . . . Recycling Units 2 | . 1 . 1 . . . . . . . . . . . . . . Scanalyzers . | . . . . . . . . . . . . . . . . . . Garrison Access 3 | . . . . . . . 1 . 1 . 1 . . . . . . Terminal Hacks 40 | . 7 . 2 . 27 . 2 . . . 2 . . . . . . Record 29 | . 2 . . . 27 . . . . . . . . . . . . Robot Analysis 1 | . 1 . . . . . . . . . . . . . . . . Alert Level 1 | . . . 1 . . . . . . . . . . . . . . Unreport Threat 5 | . 1 . . . . . 2 . . . 2 . . . . . . Locate Traps 3 | . 2 . 1 . . . . . . . . . . . . . . Hauler Manifests 1 | . 1 . . . . . . . . . . . . . . . . Fabricator Hacks . | . . . . . . . . . . . . . . . . . . Repair Station Hacks 4 | . 2 . 2 . . . . . . . . . . . . . . Scan Component 2 | . 1 . 1 . . . . . . . . . . . . . . Repair 2 | . 1 . 1 . . . . . . . . . . . . . . Recycling Unit Hacks 2 | . 1 . 1 . . . . . . . . . . . . . . Report Inventory 2 | . 1 . 1 . . . . . . . . . . . . . . Scanalyzer . | . . . . . . . . . . . . . . . . . . Garrison Access Hacks 3 | . . . . . . . 1 . 1 . 1 . . . . . . Unlock Access 3 | . . . . . . . 1 . 1 . 1 . . . . . . Unauthorized Hacks . | . . . . . . . . . . . . . . . . . . Terminals . | . . . . . . . . . . . . . . . . . . Fabricators . | . . . . . . . . . . . . . . . . . . Repair Stations . | . . . . . . . . . . . . . . . . . . Recycling Units . | . . . . . . . . . . . . . . . . . . Scanalyzers . | . . . . . . . . . . . . . . . . . . Garrison Access . | . . . . . . . . . . . . . . . . . . Data Cores Recovered 1 | . 1 . . . . . . . . . . . . . . . . Used 1 | . 1 . . . . . . . . . . . . . . . . Hacking Detections 15 | . 8 . 2 . . . 2 . 1 . 1 . 1 . . . . Full Trace Events . | . . . . . . . . . . . . . . . . . . Feedback Events . | . . . . . . . . . . . . . . . . . . Feedback Blocked . | . . . . . . . . . . . . . . . . . . Robot Schematics Acquired . | . . . . . . . . . . . . . . . . . . Robots Built . | . . . . . . . . . . . . . . . . . . Matter . | . . . . . . . . . . . . . . . . . . Time . | . . . . . . . . . . . . . . . . . . Total Robot Build Rating . | . . . . . . . . . . . . . . . . . . Part Schematics Acquired . | . . . . . . . . . . . . . . . . . . Parts Built . | . . . . . . . . . . . . . . . . . . Matter . | . . . . . . . . . . . . . . . . . . Time . | . . . . . . . . . . . . . . . . . . Total Part Build Rating . | . . . . . . . . . . . . . . . . . . Parts Repaired 2 | . 1 . 1 . . . . . . . . . . . . . . Time 52 | . 26 . 26 . . . . . . . . . . . . . . Parts Recycled . | . . . . . . . . . . . . . . . . . . Recycled Matter . | . . . . . . . . . . . . . . . . . . Retrieved Matter . | . . . . . . . . . . . . . . . . . . Retrieved Components . | . . . . . . . . . . . . . . . . . . Parts Scanalyzed . | . . . . . . . . . . . . . . . . . . Part Schematics Acquired . | . . . . . . . . . . . . . . . . . . Parts Damaged . | . . . . . . . . . . . . . . . . . . Bothacking | -11 -10 -10 -9 -9 -9 -8 -8 -8 -8 -8 -7 -7 -7 -7 -7 -7 -6 ------------ Run | Scr Mat Min Mat Min Exi Min Mat Gar Mat Gar Fac Gar Fac Low Low Zio Pro Used RIF Installer 3 | . . . . . . . . 1 . 1 . 1 . . . . . Coupler Efficiency 1 | . . . . . . . . . . 1 . . . . . . . Signal Jammer 1 | . . . . . . . . . . . . 1 . . . . . Robots Hacked 1 | . . . . . . . . . . . . . . . . 1 . Non-combat . | . . . . . . . . . . . . . . . . . . Combat 1 | . . . . . . . . . . . . . . . . 1 . Robot Hacks Applied 1 | . . . . . . . . . . . . . . . . 1 . parse_system 1 | . . . . . . . . . . . . . . . . 1 . Relay Couplers Released 47 | . . . . . . . . 16 . 11 . 20 . . . . . Machine Destruction 47 | . . . . . . . . 16 . 11 . 20 . . . . . Robots Rewired 6 | . . . . . . . . . . . . 6 . . . . . Allies Hacked . | . . . . . . . . . . . . . . . . . . Hacks Repelled . | . . . . . . . . . . . . . . . . . . Allies | -11 -10 -10 -9 -9 -9 -8 -8 -8 -8 -8 -7 -7 -7 -7 -7 -7 -6 -------- Run | Scr Mat Min Mat Min Exi Min Mat Gar Mat Gar Fac Gar Fac Low Low Zio Pro Total Allies 6 | . . . . . . . . . . . . 6 . . . . . Largest Group 6 | . . . . . . . . . . . . 6 . . . . . Highest-Rated Group 96 | . . . . . . . . . . . . 96 . . . . . Highest-Rated Ally 16 | . . . . . . . . . . . . 16 . . . . . Total Orders 4 | . . . . . . . . . . . . 4 . . . . . STAY 2 | . . . . . . . . . . . . 2 . . . . . ROAM 1 | . . . . . . . . . . . . 1 . . . . . GUARD 1 | . . . . . . . . . . . . 1 . . . . . Ally Attacks 30 | . . . . . . . . . . . . 30 . . . . . Total Damage 403 | . . . . . . . . . . . . 403 . . . . . Kills 4 | . . . . . . . . . . . . 4 . . . . . Allies Corrupted . | . . . . . . . . . . . . . . . . . . Allies Melted 1 | . . . . . . . . . . . . 1 . . . . . Intel | -11 -10 -10 -9 -9 -9 -8 -8 -8 -8 -8 -7 -7 -7 -7 -7 -7 -6 ------- Run | Scr Mat Min Mat Min Exi Min Mat Gar Mat Gar Fac Gar Fac Low Low Zio Pro Robot Analysis Total 1 | . 1 . . . . . . . . . . . . . . . . Derelict Logs Recovered 2 | . . . . . . . . . . . . . . 1 1 . . Drone Launches . | . . . . . . . . . . . . . . . . . . Drone Recoveries . | . . . . . . . . . . . . . . . . . . Exploration | -11 -10 -10 -9 -9 -9 -8 -8 -8 -8 -8 -7 -7 -7 -7 -7 -7 -6 ------------- Run | Scr Mat Min Mat Min Exi Min Mat Gar Mat Gar Fac Gar Fac Low Low Zio Pro Turns Passed 13154 | 34 1015 85 840 493 523 272 532 1294 36 1291 301 4136 415 645 587 506 149 Spaces Moved 5958 | 9 685 59 351 277 359 120 171 599 16 603 109 1309 197 354 247 199 294 Core 342 | . . . . . . . . . . . . 7 . . . 41 294 Treads 2962 | . 80 . 189 163 10 120 171 41 13 603 109 507 197 354 247 158 . Legs 1275 | 9 10 . . . . . . 558 3 . . 695 . . . . . Wheels 1279 | . 595 59 162 114 349 . . . . . . . . . . . . Hover . | . . . . . . . . . . . . . . . . . . Flight 100 | . . . . . . . . . . . . 100 . . . . . Fastest Speed 50 | 120 90 110 130 140 120 200 180 150 180 180 180 180 180 180 182 50 50 Average Speed 180 | 120 110 110 165 163 138 200 180 171 180 180 180 260 180 180 196 250 50 Slowest Speed 2150 | 120 180 110 220 220 200 200 180 240 180 180 180 2150 180 182 290 2100 50 Overloaded Moves . | . . . . . . . . . . . . . . . . . . Propulsion Burnouts . | . . . . . . . . . . . . . . . . . . Robots Hopped . | . . . . . . . . . . . . . . . . . . Cave-ins Triggered . | . . . . . . . . . . . . . . . . . . Exploration Rate (%) 41 | 2 86 25 39 71 63 25 16 74 2 79 5 95 5 58 57 15 21 Regions Visited 17 Branch Regions 8 Pre-discovered Areas 1 | . . . . . 1 . . . . . . . . . . . . Known Exits Taken 4 | . . . . . . . 1 . 1 . 1 . . . 1 . . Unknown Exits Taken 10 | 1 1 1 1 1 1 1 . . . . . . 1 1 . 1 . Scrap Searched 8 | . . 1 . 2 . . . . . . . . . 3 1 1 . Spaces Dug 19 | . . . . . . . 3 . . . 1 9 6 . . . . Terrain Destroyed 297 | . . . . . . . 7 23 . 92 1 123 8 . 43 . . Melee 7 | . . . . . . . . . . . 1 . 6 . . . . Projectile 24 | . . . . . . . 3 . . 2 . 5 2 . 12 . . AOE 266 | . . . . . . . 4 23 . 90 . 118 . . 31 . . Terrain Rammed . | . . . . . . . . . . . . . . . . . . Walls Destroyed . | . . . . . . . . . . . . . . . . . . Machines Disabled . | . . . . . . . . . . . . . . . . . . Actions | -11 -10 -10 -9 -9 -9 -8 -8 -8 -8 -8 -7 -7 -7 -7 -7 -7 -6 --------- Run | Scr Mat Min Mat Min Exi Min Mat Gar Mat Gar Fac Gar Fac Low Low Zio Pro Total 7601 | 16 837 67 546 296 391 142 309 778 24 710 214 1856 241 365 308 205 296 Wait 619 | . 32 3 98 . . 6 59 16 . 14 90 254 23 . 24 . . Move 5944 | 8 684 58 350 276 358 119 171 598 16 602 109 1308 196 353 246 198 294 Hop . | . . . . . . . . . . . . . . . . . . Pick Up 131 | . 21 . 16 2 5 8 4 16 2 16 6 28 1 2 2 2 . Fast Attach 59 | . 4 . 6 2 6 . 2 7 . 1 . 24 5 1 1 . . Attach 85 | . 12 . 12 . 3 . 10 13 3 5 3 17 . . 4 2 1 Detach 44 | . 7 . 6 . 1 . 6 11 . 3 . 5 1 . 2 1 1 Swap 35 | . 3 . 3 1 3 . . 7 . 4 . 11 . 3 . . . Drop 157 | . 13 . 17 4 15 3 4 23 3 10 4 46 5 6 3 1 . Fire 400 | 8 59 6 34 11 . 5 49 53 . 51 1 94 4 . 24 1 . Melee 14 | . . . . . . . . . . . 1 5 6 . 2 . . Ram 1 | . 1 . . . . . . . . . . . . . . . . Kick . | . . . . . . . . . . . . . . . . . . Crush 10 | . 1 . 4 . . 1 4 . . . . . . . . . . Escape Stasis 46 | . . . . . . . . 34 . 4 . 8 . . . . . Rewire 56 | . . . . . . . . . . . . 56 . . . . . Trap . | . . . . . . . . . . . . . . . . . . Miscellaneous . | . . . . . . . . . . . . . . . . . . Route ------- -11/Scrapyard -10/Materials (discovered 4 exits: *Mat x2 / [*Min x2]) -10/Mines -9/Materials -9/Mines (discovered 3 exits: *Mat / *Exi / *Zio) -9/Exiles -8/Mines -8/Materials (discovered 2 exits: *Fac / Gar) -8/Garrison (discovered 3 exits: *Mat x3) -8/Materials -8/Garrison (discovered 3 exits: *Fac x3) -7/Factory -7/Garrison (discovered 3 exits: *Fac x3) -7/Factory -7/Lower Caves -7/Lower Caves (discovered 2 exits: [*Fac] / *Zio) -7/Zion -6/Proximity Caves History --------- Turn | Location | Event 25 | -11/Scrapyard | Discovered new exit (range 2) 35 | -11/Scrapyard | Entered Materials 215 | -10/Materials | Discovered new exit (range 8) 304 | -10/Materials | Build established: Mutant 543 | -10/Materials | Repaired Lgt. Cannon 658 | -10/Materials | Discovered new exit (range 10) 684 | -10/Materials | Core integrity fell below 50% 788 | -10/Materials | Discovered new exit (range 9) 913 | -10/Materials | Central database locked down 1013 | -10/Materials | Discovered new exit (range 7) 1050 | -10/Materials | Entered Mines 1084 | -10/Mines | Met a Derelict bent on vengeance 1123 | -10/Mines | Discovered new exit (range 12) 1135 | -10/Mines | Entered Materials 1135 | -9/Materials | Evolved 2 slots: Utility x1, Weapon x1 1423 | -9/Materials | Build established: Hauler-Gunner 1731 | -9/Materials | Repaired Ion Engine 1963 | -9/Materials | Discovered new exit (range 8) 1975 | -9/Materials | Entered Mines 2068 | -9/Mines | A Derelict revealed a hidden shortcut to a safe place 2199 | -9/Mines | Discovered new exit (range 7) 2260 | -9/Mines | Received a Rocket Launcher from a helpful Derelict 2408 | -9/Mines | Deemed a non-threat by the Exiles lab entrance 2463 | -9/Mines | Discovered new exit (range 5) 2468 | -9/Mines | Entered Exiles 2503 | -9/Exiles | Met 8R-AWN 2526 | -9/Exiles | Met EX-HEX 2571 | -9/Exiles | Met EX-BIN 2590 | -9/Exiles | Aligned with FarCom system 2592 | -9/Exiles | Given EX-Vault access code 2649 | -9/Exiles | Opened EX-Vault 2656 | -9/Exiles | Found Prototype Energy Gun 2656 | -9/Exiles | Identified AWS/Thermal 2663 | -9/Exiles | Found Prototype Slashing Weapon 2663 | -9/Exiles | Identified Longsword +1 2684 | -9/Exiles | Found Prototype Processor 2684 | -9/Exiles | Identified Modified TNC 2744 | -9/Exiles | Warned to stay clear of 0b10 Research branches 2779 | -9/Exiles | Met EX-DEC 2792 | -9/Exiles | Learned location of Zion (-7) 2858 | -9/Exiles | Discovered new exit (range 12) 2991 | -9/Exiles | Left Exiles lab with Modified TNC 2991 | -9/Exiles | Entered Mines 3183 | -8/Mines | Build established: Hauler-Skirmisher 3221 | -8/Mines | Discovered new exit (range 8) 3263 | -8/Mines | Entered Materials 3263 | -8/Materials | Evolved 2 slots: Propulsion x1, Utility x1 3600 | -8/Materials | Garrison activated, responded to threat 3678 | -8/Materials | Lost 3 parts (1n2u) 3775 | -8/Materials | Discovered new exit (range 16) 3795 | -8/Materials | Identified exit to Garrison 3795 | -8/Materials | Entered Garrison 3804 | -8/Garrison | Installed Relay Interface Framework 3862 | -8/Garrison | Triggered checkpoint 3937 | -8/Garrison | Garrison Relay disabled 4042 | -8/Garrison | Triggered checkpoint 4099 | -8/Garrison | Destroyed 7 combat bots 4180 | -8/Garrison | Triggered checkpoint 4197 | -8/Garrison | Build established: Scavenger-Skirmisher 4228 | -8/Garrison | Garrison Relay disabled 4254 | -8/Garrison | Triggered checkpoint 4406 | -8/Garrison | Discovered new exit (range 12) 4608 | -8/Garrison | Triggered checkpoint 4626 | -8/Garrison | Garrison Relay disabled 4685 | -8/Garrison | Discovered new exit (range 12) 4829 | -8/Garrison | Discovered new exit (range 14) 4946 | -8/Garrison | Triggered checkpoint 5028 | -8/Garrison | Garrison Relay disabled 5089 | -8/Garrison | Entered Materials 5125 | -8/Materials | Identified exit to Garrison 5125 | -8/Materials | Entered Garrison 5242 | -8/Garrison | Triggered checkpoint 5476 | -8/Garrison | Spotted B-75 Beast 5476 | -8/Garrison | Spotted B-75 Beast 5526 | -8/Garrison | Triggered checkpoint 5614 | -8/Garrison | Discovered new exit (range 12) 5646 | -8/Garrison | Expanded RIF knowledge: Coupler Efficiency 5690 | -8/Garrison | Triggered checkpoint 5763 | -8/Garrison | Garrison Relay disabled 5842 | -8/Garrison | Triggered checkpoint 5896 | -8/Garrison | Discovered new exit (range 9) 5950 | -8/Garrison | Triggered checkpoint 6005 | -8/Garrison | Phase Generator disabled 6026 | -8/Garrison | Garrison Relay disabled 6255 | -8/Garrison | Discovered new exit (range 12) 6322 | -8/Garrison | Triggered checkpoint 6363 | -8/Garrison | Garrison Relay disabled 6416 | -8/Garrison | Entered Factory 6416 | -7/Factory | Evolved 2 slots: Propulsion x1, Utility x1 6717 | -7/Factory | Identified exit to Garrison 6717 | -7/Factory | Entered Garrison 6754 | -7/Garrison | Triggered checkpoint 6777 | -7/Garrison | Build established: Scavenger-Tank 6814 | -7/Garrison | Garrison Relay disabled 6912 | -7/Garrison | Triggered checkpoint 7031 | -7/Garrison | Discovered new exit (range 10) 7290 | -7/Garrison | Triggered checkpoint 7338 | -7/Garrison | Garrison Relay disabled 7616 | -7/Garrison | Triggered checkpoint 7798 | -7/Garrison | Garrison Relay disabled 7825 | -7/Garrison | Build established: Scavenger-Skirmisher 8020 | -7/Garrison | Triggered checkpoint 8020 | -7/Garrison | Triggered checkpoint 8114 | -7/Garrison | Triggered checkpoint 8370 | -7/Garrison | Discovered new exit (range 15) 8536 | -7/Garrison | Triggered checkpoint 8638 | -7/Garrison | Triggered checkpoint 8668 | -7/Garrison | Destroyed 8 combat bots 8762 | -7/Garrison | Build established: Scavenger-Tank 8904 | -7/Garrison | Discovered new exit (range 10) 8936 | -7/Garrison | Expanded RIF knowledge: Signal Jamming 9100 | -7/Garrison | Lost 11 parts (4n3u4w) 9283 | -7/Garrison | Garrison Relay disabled 9320 | -7/Garrison | Build established: Hauler-Mutant 10853 | -7/Garrison | Entered Factory 11259 | -7/Factory | Discovered new exit (range 5) 11268 | -7/Factory | Entered Lower Caves 11569 | -7/Lower Caves | Learned Factory terminal intel 11760 | -7/Lower Caves | Encountered a Warlord checkpoint 11853 | -7/Lower Caves | Discovered new exit (range 8) 11913 | -7/Lower Caves | Entered another Lower Caves area 11913 | -7/Lower Caves | Discovered new exit (range 17) 12236 | -7/Lower Caves | Identified exit to Zion 12367 | -7/Lower Caves | Attracted the attention of an 0b10 checkpoint 12404 | -7/Lower Caves | Core integrity fell below 50% 12419 | -7/Lower Caves | Build established: Bothacker-Tank 12434 | -7/Lower Caves | Lost 4 parts (3n1u) 12500 | -7/Lower Caves | Entered Zion 12774 | -7/Zion | Discovered new exit (range 16) 12957 | -7/Zion | RIF detected upon attempting to enter Zion 12957 | -7/Zion | Attacked by Zionites 12959 | -7/Zion | Spotted CV-LKY(B) 12959 | -7/Zion | Spotted 3H-ZXH(B) 12986 | -7/Zion | Released all parts (4) 12990 | -7/Zion | Core integrity fell below 20% 13006 | -7/Zion | Entered Proximity Caves 13012 | -6/Proximity Caves | Lost 7 parts (1p2n1u3w) 13152 | -6/Proximity Caves | Attracted the attention of an 0b10 outpost 13155 | -6/Proximity Caves | Destroyed by S-27 Virus with Autogun Last Messages --------------- 12960_ Arm. Treads destroyed. 12963_ Autogun destroyed. 12966_ Deuterium Engine destroyed. 12968_ Mass Driver destroyed. 12970_ Autogun destroyed. 12975_ WP-C4F(z) destroyed. 12978_ Knocked back. 12981_ Hrd. Light Armor Plating destroyed. 12984_ Jacked CV-LKY(B)... >>parse_system Reading system data... 12986_ Released Hcp. Storage Unit. 12986_ Released Enh. Optical Array. LOCATION=UNKNOWN GOAL=ESCAPE 13045_ System corrupted: Component data lost. 13055_ E1-KGM(k) breaks down the debris. 13151_ Penetrated by Slug. 13151_ G-50 Soldier springs to life. 13152_ Y-64 Sentinel: "DETECTED UNIDENTIFIED DERELICT." Map ----- +----------------------------------------------------+ | | | | | | | | | | | | | | | | | ?????????????????????????????????????????????????? | | ?????????????????????????????????????????????????? | | ?????????????????????????????????????????????????? | | ?????????????????????????????????????????????????? | | ?????????????????????????????????????????????????? | | ?????????????????????????????????????????????????? | | ?????????????????????????????????????????????????? | | ?????????????????????????????????????????????????? | | ?????????????????????????????????????????????????? | | ?????????????????????????????????????????????????? | | ?????????????????????????????????????????????????? | | ?????????????????????????????????????????????????? | | ?????????????????????????????????????????????????? | | ?????????????????????????????????????????????????? | | ?????????????????????????????????????????????????? | | ##????????????###??????####???##?????????????????? | | ##???????????# ####### ## #?????????????????? | | #??????###??# @ #?????????????????? | | #????### #??## #?????????????????? | | ##???## ######## ##?????????????????? | | ##???## ## #??????????????????? | | #??### #??????????????????? | | #### ######### #??????????????????? | | ##???????## #??????????????????? | | #?????????######g ##??????????????????? | | #??????????????# s ?????????????????? | | # #??????????????# s g ????????????????? | | ## ####??????? ??????# # Y g # ????????????????? | | ?####????##### #?????# ###s ###?????????????????? | | ????????# #?????# #?? s "??????????????????? | | ???????# ##????# ??? "??????????????????? | | ??????# ????# ??? "??????????????????? | | ????? ????? ?????????????????????????? | | ###?? ???????????????????????????????? | | # ##? ??????????????????????????????????? | | # ## #?????????????????????????????????????? | | #?###??????????????????????????????????? | | #???# ##?????????????????????????????????? | | ## ##???# ##????????????????????????????????? | | ##???????# #????????????????????????????????? | | ##???????## #????????????????????????????????? | | ##???????## ##????????????????????????????????? | +----------------------------------------------------+ Best States ------------- Heat Dissipation 62 Energy Generation 16 Energy Capacity 290 Matter Stores 300 Matter Capacity 300 Sight Range 22 Terrain Scan Density 10 Armor Coverage 450 Weapon Cycling 15 Evasion (%) 50 Recoil Reduction 10 Offensive Hacking 10 Item Schematics ----------------- None Robot Schematics ------------------ None Fabricated ------------ Nothing Alien Tech Used ----------------- None Achievements -------------- A New Friend Challenges ------------ None Game ------ Seed LaserGravityField Manual? 0 Play Time 02:29:49 Cumulative 73.0 hours Start 2021.10.26 @ 18:27:48 End 2021.10.31 @ 00:57:07 Sessions 5 Manual Loads 0 Difficulty Rogue Special Mode None Game No. 28 Rogue 28 Adventurer 0 Explorer 0 Win Type - Total 0 Types 0/0/0/0/0/0/0/0/0 Lore% 20 Gallery% 47 Achievement% 33 Wizard Run 0 Options --------- ASCII 0 Keyboard 1 Movement Vi Keybinds 0 Fullscreen 1 Font 18/Terminus Map View 76x50 Tactical HUD 1 Map Filters NONE Filters NONE Steam 1 RUN: 7d8b84f1-4963-4724-b135-62342688d9f7